[Event "Romanian Superleague 2022"]
[Site "Oradea"]
[Date "2022.09.21"]
[Round "1.12"]
[White "Ciorgovean, Iustin"]
[Black "Costachi, Mihnea"]
[Result "0-1"]
[ECO "D79"]
[WhiteElo "2314"]
[BlackElo "2470"]
[Annotator "TA"]
[PlyCount "98"]
[EventDate "2022.09.21"]
[EventType "team-tourn"]
[EventCountry "ROU"]
[SourceTitle "playchess.com"]
[Source "ChessBase"]
[SourceQuality "1"]
[TimeControl "40/5400+30:1800+30"]

{[%evp 21,98,19,39,29,31,6,0,0,0,0,0,-17,-34,-54,-56,-51,-54,-52,-22,-62,-69,-172,-164,-172,-168,-172,-163,-158,-163,-193,-192,-187,-182,-181,-155,-182,-121,-129,-129,-123,-68,-176,-183,-182,-178,-286,-281,-282,-281,-276,-260,-279,-287,-288,-248,-389,-379,-363,-347,-480,-320,-1542,-1558,-478,-457,-1917,-1839,-1492,-1170,-1256,-1005,-1761,-1255,-5102,-2080,-29973,-29974,-29973,-29967]} 1. d4 {[%emt 0:00:03]} Nf6 {[%emt 0:00:15]} 2. c4 {[%emt 0:00:08]} c6 {[%emt 0:00:14]} 3. Nf3 {[%emt 0:00:13]} d5 {[%emt 0:00:05]} 4. g3 {[%emt 0:00:35]} g6 {[%emt 0:03:40]} 5. Bg2 {[%emt 0:00:59]} Bg7 {[%emt 0:00:07]} 6. cxd5 {[%emt 0:00:23]} cxd5 {[%emt 0:00:29]} 7. Ne5 {[%emt 0:00:14]} O-O {[%emt 0:01:04]} 8. Nc3 {[%emt 0:00:09]} Nc6 {[%emt 0:14:12]} 9. O-O {[%emt 0:10:45]} Be6 {[%emt 0:26:39]} 10. Nxc6 {[%emt 0:21:00]} bxc6 {[%emt 0:00:02]} 11. Bf4 {[%emt 0:01:46]} Nh5 {[%emt 0:08:28]} 12. Be3 {[%emt 0:05:44] D79: Fianchetto Grünfeld: Symmetrical Variation (6 0-0 c6 7 cxd5 cxd5).} f5 {[%emt 0:03:38]} 13. Qd2 {[%emt 0:06:55]} Qd6 {[%emt 0:04:40]} 14. Bh6 {[%emt 0:16:43] [#] The position is equal.} Bxh6 $146 ({Predecessor:} 14... f4 15. Bxg7 Kxg7 16. Qd3 Bf5 17. e4 dxe4 18. Nxe4 Qc7 19. Qc3 Nf6 20. Nxf6 Rxf6 {1-0 (31) Stefanova,A (2469)-Sliwicka,A (2289) Warsaw 2021}) 15. Qxh6 {[%emt 0:00:02]} f4 {[%emt 0:04:35]} 16. Bf3 {[%emt 0:06:08]} Ng7 {[%emt 0:04:43]} 17. e3 {[%emt 0:05:39][%cal Rg3f4]} fxg3 {[%emt 0:09:32]} 18. fxg3 {[%emt 0:00:07]} Bd7 {[%emt 0:00:31]} 19. Rae1 {[%emt 0:03:52]} e5 {[%emt 0:01:00]} 20. Bg2 {[%emt 0:03:45]} Rxf1+ {[%emt 0:02:15]} ({Much weaker is} 20... Nf5 21. dxe5 Qxe5 22. Qf4 Qxf4 23. Rxf4 $11) 21. Bxf1 {[%emt 0:01:44]} (21. Rxf1 $15 Nf5 22. Qg5 (22. dxe5 Qxe5 23. Qf4 Qxe3+ 24. Qf2 Re8 $17)) 21... Qb4 $19 {[%emt 0:05:32][%csl LRb2,LRd4]} 22. Re2 {[%emt 0:03:43]} ({Avoid the trap} 22. dxe5 $2 Qxb2 23. Nxd5 cxd5 $19) 22... Nf5 {[%emt 0:02:27]} 23. Qg5 {[%emt 0:00:35]} exd4 {[%emt 0:00:09]} 24. exd4 {[%emt 0:01:48]} Qxd4+ {[%emt 0:00:28]} 25. Kh1 {[%emt 0:00:21]} Rf8 {[%emt 0:00:59][%cal Of5g3]} 26. Bg2 {[%emt 0:00:35]} Kg7 {[%emt 0:02:48]} 27. Qc1 {[%emt 0:01:06]} Rf7 {[%emt 0:01:05]} 28. b3 {[%emt 0:00:23]} Nh6 {[%emt 0:00:53]} (28... h5 $19 {White must now prevent ...h4.} 29. Qd2 Qf6) 29. Na4 $17 {[%emt 0:02:40]} Ng4 {[%emt 0:00:45] [#] ...Nf2+ is the strong threat.} 30. h3 {[%emt 0:00:26]} Ne5 {[%emt 0:02:46] Black is more active.} (30... Nf2+ $17 31. Kh2 Nd3) 31. Kh2 {[%emt 0:04:53]} (31. Nc5 $15) 31... Rf2 $36 {[%emt 0:00:20][%mdl 2048] Black is on the roll.} 32. Rxf2 {[%emt 0:01:17]} Qxf2 {[%emt 0:00:01]} 33. Qf4 {[%emt 0:00:25]} (33. Qb2 $142 Qxb2 34. Nxb2) 33... Qxf4 {[%emt 0:01:03]} 34. gxf4 {[%emt 0:00:01][%mdl 4096] Endgame KBN-KBN} Nd3 {[%emt 0:00:07]} 35. Kg3 {[%emt 0:00:04]} Nc1 {[%emt 0:01:32]} 36. Nc5 {[%emt 0:00:30]} Bf5 {[%emt 0:00:05]} 37. a4 {[%emt 0:01:40]} Nd3 {[%emt 0:00:28]} 38. Nxd3 {[%emt 0:00:21]} (38. Nb7 {was the only defense.}) 38... Bxd3 {[%emt 0:00:01] KB-KB} 39. b4 {[%emt 0:00:13]} Kf6 {[%emt 0:01:04] Strongly threatening ...Kf5.} 40. Kf2 {[%emt 0:00:00]} Bc2 {[%emt 0:00:00]} 41. a5 $2 {[%emt 0:01:11]} (41. Ke3) 41... Be4 {[%emt 0:04:21]} 42. Bf1 {[%emt 0:00:12]} d4 {[%emt 0:00:20][%cal Bd5d4,Bd4d3][%mdl 32] [#] And now ...Kf5 would win.} 43. Bc4 {[%emt 0:16:04]} (43. h4 $142 Kf5 44. Kg3) 43... Kf5 {[%emt 0:02:30]} 44. Kg3 {[%emt 0:00:14]} Bc2 {[%emt 0:02:11] Threatens to win with ...d3.} 45. Kf3 {[%emt 0:01:48]} Bd1+ {[%emt 0:00:30]} 46. Kg3 {[%emt 0:00:09]} Ke4 {[%emt 0:00:34] Hoping for ...d3.} 47. Bg8 {[%emt 0:00:41]} d3 {[%emt 0:00:32] ( -> ...d2)} 48. Bxh7 {[%emt 0:00:15]} Bh5 {[%emt 0:00:27]} 49. Kf2 {[%emt 0:01:43]} Kxf4 {[%emt 0:00:29] Weighted Error Value: White=0.90/Black=0.10 (very precise)} 0-1

[Event "Romanian Superleague 2022"]
[Site "Oradea"]
[Date "2022.09.21"]
[Round "1.13"]
[White "Efimenko, Zahar"]
[Black "Nguyen, Thai Dai Van"]
[Result "1/2-1/2"]
[ECO "B83"]
[WhiteElo "2599"]
[BlackElo "2627"]
[Annotator "TA"]
[PlyCount "52"]
[EventDate "2022.09.21"]
[EventType "team-tourn"]
[EventCountry "ROU"]
[SourceTitle "playchess.com"]
[Source "ChessBase"]
[SourceQuality "1"]
[TimeControl "40/5400+30:1800+30"]

{[%evp 16,52,17,8,8,8,23,7,22,16,25,0,32,7,12,0,18,19,30,31,25,25,25,27,27,11,25,0,0,0,0,0,11,0,10,0,0,8,40]} 1. e4 {[%emt 0:00:36]} c5 {[%emt 0:00:18]} 2. Nf3 {[%emt 0:00:23]} e6 {[%emt 0:00:16]} 3. d4 {[%emt 0:01:17]} cxd4 {[%emt 0:00:11]} 4. Nxd4 {[%emt 0:00:05]} Nc6 {[%emt 0:00:10]} 5. Nc3 {[%emt 0:00:36]} Nf6 {[%emt 0:00:12]} 6. a3 {[%emt 0:04:53]} Be7 {[%emt 0:01:27]} 7. Be2 {[%emt 0:08:44]} O-O {[%emt 0:01:21]} 8. O-O {[%emt 0:00:10]} d6 {[%emt 0:17:44]} 9. Be3 {[%emt 0:02:20]} e5 {[%emt 0:00:13] B83: Sicilian Scheveningen: 6 Be2, lines without ...a6.} 10. Nb3 {[%emt 0:04:55]} Be6 {[%emt 0:00:10]} 11. Bf3 {[%emt 0:08:08] [#]} Rc8 $146 {[%emt 0:05:17]} ({Predecessor:} 11... Na5 12. Nxa5 Qxa5 13. Qd2 Rfc8 14. Rfd1 a6 15. Nd5 Qxd2 16. Nxf6+ Bxf6 17. Rxd2 g6 {½-½ (25) Andeer,S (2476)-Rogos,J (2388) ICCF email 2014}) 12. Qd2 {[%emt 0:05:09]} h6 {[%emt 0:07:26]} 13. h3 {[%emt 0:10:25]} Re8 {[%emt 0:18:19]} 14. Nd5 {[%emt 0:08:12]} Nh7 {[%emt 0:00:51]} 15. Rad1 {[%emt 0:00:50]} Bg5 {[%emt 0:00:53]} (15... Ng5 $5 {[%cal Rg5f3]} 16. Qe2 (16. Nxe7+ Nxe7 17. Bxg5 hxg5 $11) 16... Nxf3+ 17. Qxf3 Rf8 $11) 16. Bg4 {[%emt 0:06:41]} Bxg4 {[%emt 0:06:00]} 17. hxg4 {[%emt 0:00:04]} Ne7 {[%emt 0:10:15]} 18. Nc3 {[%emt 0:02:27]} Qd7 {[%emt 0:00:28]} 19. f3 {[%emt 0:00:45]} Red8 {[%emt 0:00:27]} 20. Rfe1 {[%emt 0:03:16]} Qc6 {[%emt 0:02:36]} 21. Qf2 {[%emt 0:05:00]} b6 {[%emt 0:05:57] The position is equal.} 22. Rd3 {[%emt 0:00:11]} Bxe3 {[%emt 0:02:56]} 23. Qxe3 {[%emt 0:00:07]} Rd7 {[%emt 0:00:57]} 24. Red1 {[%emt 0:01:58]} Rcd8 {[%emt 0:00:05]} 25. Nc1 {[%emt 0:01:10]} Nf6 {[%emt 0:03:04]} 26. N1e2 {[%emt 0:01:26]} Qc5 {[%emt 0:03:44] An interesting draw.  Weighted Error Value: White=0.07 (flawless) /Black=0.05 (flawless)} 1/2-1/2

[Event "Romanian Superleague 2022"]
[Site "Oradea"]
[Date "2022.09.21"]
[Round "1.14"]
[White "Nisipeanu, Liviu-Dieter"]
[Black "Baklan, Vladimir"]
[Result "1/2-1/2"]
[ECO "E14"]
[WhiteElo "2633"]
[BlackElo "2578"]
[Annotator "TA"]
[PlyCount "42"]
[EventDate "2022.09.21"]
[EventType "team-tourn"]
[EventCountry "ROU"]
[SourceTitle "playchess.com"]
[Source "ChessBase"]
[SourceQuality "1"]
[TimeControl "40/5400+30:1800+30"]

{[%evp 16,42,13,5,2,0,0,0,0,0,0,0,7,0,0,0,0,0,0,0,0,0,0,-6,-7,-7,0,0,0]} 1. d4 {[%emt 0:00:04]} Nf6 {[%emt 0:00:04]} 2. c4 {[%emt 0:00:12]} e6 {[%emt 0:00:06]} 3. Nf3 {[%emt 0:00:07]} Bb4+ {[%emt 0:04:27]} 4. Nbd2 {[%emt 0:00:54]} b6 {[%emt 0:02:13]} 5. e3 {[%emt 0:03:53]} Bb7 {[%emt 0:01:38]} 6. Bd3 {[%emt 0:00:23]} c5 {[%emt 0:06:36]} 7. dxc5 {[%emt 0:10:38]} Bxc5 {[%emt 0:02:05]} 8. a3 {[%emt 0:06:16]} O-O {[%emt 0:02:37]} 9. O-O {[%emt 0:08:46] The position is equal.} d5 {[%emt 0:06:02] E14: Queen's Indian: Classical Variation (4 e3).} 10. b4 {[%emt 0:03:08]} Be7 {[%emt 0:06:21]} 11. Bb2 {[%emt 0:01:06]} a5 {[%emt 0:00:39] [#]} 12. Qb1 $146 {[%emt 0:04:43]} ({Predecessor:} 12. Rb1 axb4 13. axb4 Nc6 14. b5 Nb4 15. Be2 Ne4 16. cxd5 Bxd5 17. Nc4 Rc8 18. Nfd2 Nxd2 19. Nxd2 {½-½ (41) Lerner,K (2575)-Bauer,C (2520) Metz 1998}) 12... axb4 {[%emt 0:08:37]} 13. axb4 {[%emt 0:00:35]} Rxa1 {[%emt 0:04:04]} 14. Bxa1 {[%emt 0:00:06]} h6 {[%emt 0:02:28]} (14... dxc4 {looks sharper.} 15. Nxc4 Bxf3 16. gxf3 Qd5) 15. Rd1 {[%emt 0:05:02]} Nbd7 {[%emt 0:02:35]} 16. Bd4 {[%emt 0:28:07]} dxc4 {[%emt 0:17:06]} 17. Nxc4 {[%emt 0:02:43]} Qa8 {[%emt 0:00:44]} 18. Be2 {[%emt 0:01:28]} b5 {[%emt 0:07:52]} 19. Nce5 {[%emt 0:03:24]} Nxe5 {[%emt 0:06:11]} 20. Bxe5 {[%emt 0:00:07]} Qa3 {[%emt 0:02:44]} 21. Bxb5 {[%emt 0:04:29]} Qxb4 {[%emt 0:00:39] A balanced but interesting game.  Weighted Error Value: White=0.02 (flawless) /Black=0.01 (flawless)} 1/2-1/2

[Event "Romanian Superleague 2022"]
[Site "Oradea"]
[Date "2022.09.21"]
[Round "1.15"]
[White "Nanu, Costica-Ciprian"]
[Black "Mendonca, Leon Luke"]
[Result "1-0"]
[ECO "B38"]
[WhiteElo "2518"]
[BlackElo "2558"]
[Annotator "TA"]
[PlyCount "136"]
[EventDate "2022.09.21"]
[EventType "team-tourn"]
[EventCountry "ROU"]
[SourceTitle "playchess.com"]
[Source "ChessBase"]
[SourceQuality "1"]
[TimeControl "40/5400+30:1800+30"]

{[%evp 19,136,22,25,25,50,50,52,30,32,20,40,27,31,17,31,23,31,34,34,34,20,20,43,7,64,36,36,36,36,31,28,30,30,30,13,87,97,20,21,29,135,129,452,425,461,455,407,442,444,451,451,449,401,380,801,787,883,894,878,862,848,848,745,691,638,482,625,600,706,714,701,709,702,693,642,587,735,709,683,683,971,928,887,699,887,873,873,866,866,855,840,833,716,599,833,833,826,826,826,822,812,795,763,690,732,687,1142,1135,29976,29977,29978,29978,29977,29978,29978,29974,29979,29980,29980]} 1. e4 {[%emt 0:00:48]} c5 {[%emt 0:00:51]} 2. Nf3 {[%emt 0:00:38]} d6 {[%emt 0:00:05]} 3. d4 {[%emt 0:02:14]} cxd4 {[%emt 0:00:07]} 4. Nxd4 {[%emt 0:00:06]} Nf6 {[%emt 0:00:05]} 5. f3 {[%emt 0:00:27]} Nc6 {[%emt 0:04:53]} 6. c4 {[%emt 0:00:41]} g6 {[%emt 0:00:29]} 7. Nc3 {[%emt 0:00:27]} Bg7 {[%emt 0:00:41]} 8. Be3 {[%emt 0:00:06]} O-O {[%emt 0:01:06]} 9. Qd2 {[%emt 0:03:26]} Nxd4 {[%emt 0:02:13]} 10. Bxd4 {[%emt 0:00:28]} Be6 {[%emt 0:06:23]} 11. Rc1 $1 {[%emt 0:04:02][%mdl 4] is currently scoring better than 11.Be2. B38: Sicilian: Maroczy Bind with 5...Bg7 and 7...0-0.} a5 {[%emt 0:02:51]} 12. b3 {[%emt 0:00:25]} Nd7 {[%emt 0:02:40][%cal Bf6d7,Bd7c5,Bc5a4][%mdl 32]} 13. Be2 {[%emt 0:18:34] White is slightly better.} Bxd4 {[%emt 0:16:43]} 14. Qxd4 {[%emt 0:00:12] [#]} Nc5 $146 {[%emt 0:06:51]} ({Predecessor:} 14... Qb6) 15. O-O {[%emt 0:21:07]} Qb6 {[%emt 0:04:09]} 16. Rb1 {[%emt 0:05:34]} Rfc8 {[%emt 0:14:41]} 17. f4 {[%emt 0:04:56][%cal Bf3f4,Bf4f5][%mdl 32]} Na4 {[%emt 0:15:39]} 18. Qxb6 {[%emt 0:00:13]} Nxb6 {[%emt 0:00:01]} 19. f5 {[%emt 0:05:07]} Bd7 {[%emt 0:01:17]} 20. f6 {[%emt 0:01:00]} Kf8 {[%emt 0:04:45]} 21. Rbd1 {[%emt 0:01:36]} Bc6 {[%emt 0:04:00]} ({Black should try} 21... a4 $11) 22. Rd4 {[%emt 0:04:58] White is more active.} a4 {[%emt 0:05:55]} 23. b4 {[%emt 0:01:41]} Bd7 {[%emt 0:01:07]} 24. a3 {[%emt 0:07:57]} Be6 {[%emt 0:03:34][%cal Rb6c4]} 25. fxe7+ {[%emt 0:03:50]} Kxe7 {[%emt 0:00:02][%cal Rb6c4]} 26. Nd5+ {[%emt 0:00:26]} Bxd5 {[%emt 0:00:48]} 27. exd5 {[%emt 0:00:03]} ({Reject} 27. cxd5 Rc3 28. Rf3 Rac8 $15) 27... Nd7 {[%emt 0:00:53] [#]} 28. Re4+ {[%emt 0:03:36]} (28. c5 $1 $16 {[%cal Rc5c6]}) 28... Ne5 $11 {[%emt 0:00:34]} 29. c5 $36 {[%emt 0:00:16][%mdl 2048] White has the initiative.} f5 {[%emt 0:00:53]} (29... f6 $1 $11 {keeps the balance.}) 30. Re3 $16 {[%emt 0:00:05]} Rc7 $2 {[%emt 0:00:41][%mdl 8192] Loses the game.} (30... Kf6 $16 {is more resistant.}) 31. g4 {[%emt 0:00:37]} Kf6 {[%emt 0:00:31]} 32. cxd6 {[%emt 0:00:09]} Rd7 {[%emt 0:00:21]} 33. g5+ {[%emt 0:00:03]} Kxg5 {[%emt 0:00:03]} 34. Rxe5 {[%emt 0:00:07]} Rxd6 {[%emt 0:00:04]} 35. Bf3 {[%emt 0:01:30]} Rc8 {[%emt 0:00:40]} 36. Re6 {[%emt 0:03:14]} Rd7 {[%emt 0:00:58]} (36... Rxe6 37. dxe6 b6) 37. Rd1 $18 {[%emt 0:01:16]} Rc3 {[%emt 0:00:40]} 38. Be2 {[%emt 0:00:17]} Rxa3 {[%emt 0:00:38]} 39. Bb5 {[%emt 0:00:01]} Rd8 {[%emt 0:00:31]} 40. d6 {[%emt 0:00:00]} Rb3 {[%emt 0:00:00]} 41. Bxa4 {[%emt 0:03:52]} Rxb4 {[%emt 0:00:22]} 42. Re8 {[%emt 0:00:36]} Rxd6 {[%emt 0:01:39]} 43. Rxd6 {[%emt 0:00:12]} Rxa4 {[%emt 0:00:03]} 44. Re7 {[%emt 0:00:23][%csl LRb7,LRh7]} Ra1+ {[%emt 0:00:56]} 45. Kf2 {[%emt 0:00:38]} Ra2+ {[%emt 0:00:02]} 46. Re2 {[%emt 0:00:29]} Ra4 {[%emt 0:06:49]} 47. Rd7 {[%emt 0:02:13]} Rh4 {[%emt 0:02:13]} 48. Kg1 {[%emt 0:00:14]} b5 {[%emt 0:01:04]} 49. Rb7 {[%emt 0:01:06]} h6 {[%emt 0:02:57]} 50. Rxb5 {[%emt 0:01:21]} Ra4 {[%emt 0:01:03]} 51. Rb3 {[%emt 0:05:01] [#] Black must now prevent Rg2+.} Kh4 {[%emt 0:05:27]} 52. Re6 {[%emt 0:04:44]} Ra1+ {[%emt 0:01:14]} 53. Kf2 {[%emt 0:00:45]} Ra2+ {[%emt 0:00:01]} 54. Re2 {[%emt 0:02:19]} Ra6 {[%emt 0:07:03]} 55. Reb2 {[%emt 0:02:07] aiming for Rb6.} Kh5 {[%emt 0:01:20]} 56. Rh3+ {[%emt 0:00:42]} Kg5 {[%emt 0:00:07]} 57. Rbb3 {[%emt 0:05:49]} Ra2+ {[%emt 0:06:08]} 58. Kf3 {[%emt 0:00:10]} Ra6 {[%emt 0:00:49]} 59. Rc3 {[%emt 0:00:46]} Rb6 {[%emt 0:00:45]} 60. Ra3 {[%emt 0:00:11]} Rc6 {[%emt 0:00:31]} 61. Ke2 {[%emt 0:00:15]} h5 {[%emt 0:00:31]} 62. Rhg3+ {[%emt 0:00:23]} Kh6 {[%emt 0:00:17]} 63. h4 {[%emt 0:00:29] Threatening mate with Kf3.} Rb6 {[%emt 0:00:18]} 64. Kf3 {[%emt 0:00:43] White mates.} Rc6 {[%emt 0:00:20]} 65. Rg1 {[%emt 0:00:53]} Rb6 {[%emt 0:00:18]} 66. Rd3 {[%emt 0:00:59]} Ra6 {[%emt 0:00:06]} 67. Rd4 {[%emt 0:01:31]} Rb6 {[%emt 0:00:11]} 68. Kf4 {[%emt 0:00:10]} Ra6 {[%emt 0:00:13] Weighted Error Value: White=0.12 (very precise) /Black=0.39} 1-0

[Event "Romanian Superleague 2022"]
[Site "Oradea"]
[Date "2022.09.21"]
[Round "1.16"]
[White "Ghimpu, Samuel-Timotei"]
[Black "Rogozenco, Dorian"]
[Result "1-0"]
[ECO "B33"]
[WhiteElo "2434"]
[BlackElo "2438"]
[Annotator "TA"]
[PlyCount "115"]
[EventDate "2022.09.21"]
[EventType "team-tourn"]
[EventCountry "ROU"]
[SourceTitle "playchess.com"]
[Source "ChessBase"]
[SourceQuality "1"]
[TimeControl "40/5400+30:1800+30"]

{[%evp 12,115,0,7,22,26,7,12,10,0,16,4,23,17,23,0,10,17,15,2,31,39,35,39,65,42,70,64,37,75,55,35,106,105,97,99,121,85,83,83,84,89,86,89,83,75,110,106,121,110,107,106,115,125,152,166,167,167,149,162,227,222,356,327,312,273,588,383,376,345,334,360,637,622,498,580,623,612,704,681,957,937,844,530,515,511,477,491,509,320,1356,1353,1136,669,559,0,4960,3762,29981,29982,29989,512,29990,29991,29991,29992]} 1. e4 {[%emt 0:00:27]} c5 {[%emt 0:00:08]} 2. Nf3 {[%emt 0:00:12][%cal Bg1f3,Bf3d4,Bd4e2,Be2g3][%mdl 32]} Nc6 {[%emt 0:00:21]} 3. d4 {[%emt 0:00:12]} cxd4 {[%emt 0:00:06]} 4. Nxd4 {[%emt 0:00:05]} Nf6 {[%emt 0:00:05]} 5. Nc3 {[%emt 0:00:08]} e5 {[%emt 0:00:39]} 6. Nde2 {[%emt 0:00:36]} Bc5 {[%emt 0:03:03] The main line 6...Bc5 scores better than 6...Bb4.} 7. Ng3 {[%emt 0:00:25]} d6 {[%emt 0:12:25] B33: Sicilian: Pelikan and Sveshnikov Variations.} 8. Na4 {[%emt 0:00:17]} Bb4+ {[%emt 0:03:54]} 9. c3 {[%emt 0:00:20]} Ba5 {[%emt 0:00:06] The position is equal.} 10. Bd3 {[%emt 0:00:07] [#]} a6 $146 {[%emt 0:05:59]} ({Predecessor:} 10... O-O 11. O-O Be6 12. h3 a6 13. b4 Bc7 14. Qe2 b5 15. Nb2 d5 16. exd5 Nxd5 {0-1 (68) Abdrlauf,E (2334)-Zhigalko,S (2572) Chess.com INT 2021}) 11. O-O {[%emt 0:00:18]} h6 {[%emt 0:00:57]} 12. h3 {[%emt 0:05:40]} O-O {[%emt 0:01:42]} 13. Be3 {[%emt 0:00:41]} Rb8 {[%emt 0:15:27]} (13... b5 $5 14. b4 $8 bxa4 15. bxa5 (15. Qxa4 Bc7 $11) 15... Qxa5 $11) 14. b4 {[%emt 0:02:20]} Bc7 {[%emt 0:00:10]} 15. Qe2 {[%emt 0:00:08]} Ne7 {[%emt 0:11:07][%cal Bc6e7,Be7g6,Bg6f4][%mdl 32]} 16. c4 {[%emt 0:05:30]} Ng6 {[%emt 0:00:29]} 17. Rfd1 {[%emt 0:11:08]} Nf4 {[%emt 0:00:10]} 18. Qf3 {[%emt 0:02:25]} Nh7 {[%emt 0:09:02][%cal Bf6h7,Bh7g5,Bg5e4][%mdl 32] Threatens to win with ...Ng5.} 19. Bxf4 {[%emt 0:05:43]} exf4 {[%emt 0:00:05]} 20. Qxf4 {[%emt 0:02:32][%cal Oe4e5]} d5 {[%emt 0:10:09]} 21. Qe3 {[%emt 0:08:03]} dxc4 {[%emt 0:15:10]} (21... d4 $14 22. Qe2 Qg5) 22. Bxc4 $16 {[%emt 0:00:35]} Qh4 {[%emt 0:00:34]} 23. Nc5 {[%emt 0:27:27]} Ng5 {[%emt 0:00:50]} 24. Nd7 {[%emt 0:08:49] White is much more active. The black rooks are badly placed.} Bxd7 {[%emt 0:02:21]} 25. Rxd7 {[%emt 0:00:04]} Bxg3 {[%emt 0:01:21][%mdl 64] Remove Defender} 26. fxg3 {[%emt 0:00:10]} Qxe4 {[%emt 0:00:14]} 27. Qxe4 {[%emt 0:06:26]} (27. Qf4 {feels hotter.} Qc6 28. Rad1 b5 29. Bb3) 27... Nxe4 {[%emt 0:00:02]} 28. g4 {[%emt 0:04:44]} b5 {[%emt 0:03:39]} 29. Bb3 {[%emt 0:00:36]} Rb6 {[%emt 0:00:15]} 30. Re1 {[%emt 0:08:11]} Rd6 {[%emt 0:03:24]} 31. Rxd6 {[%emt 0:01:05]} Nxd6 {[%emt 0:00:02][%mdl 4096] Endgame KRB-KRN} 32. Re7 {[%emt 0:00:12]} Rc8 {[%emt 0:01:44] [#]} 33. Ra7 $1 {[%emt 0:00:32]} Rc6 {[%emt 0:00:29] [#]} 34. Bd5 $1 {[%emt 0:00:35]} Rc1+ {[%emt 0:00:45]} 35. Kf2 {[%emt 0:00:24]} Rd1 {[%emt 0:00:28]} (35... Kf8 $142 36. Ke2 (36. Rxa6 Ke7 $16) 36... Ke8 37. Rxa6 Kd7) 36. Bb3 $18 {[%emt 0:00:17]} Rd2+ {[%emt 0:00:18]} (36... Rd4 $142 37. Rxa6 Nc4 38. Ra8+ Kh7) 37. Ke3 {[%emt 0:00:42]} Rxg2 {[%emt 0:00:35]} 38. Rxa6 {[%emt 0:00:06]} Rg3+ $2 {[%emt 0:00:43]} (38... Ne8 {is more resistant.} 39. Ra7 Rg3+ 40. Kd4 Rxh3 41. Bxf7+ Kf8) 39. Kd4 {[%emt 0:00:48]} Ne8 {[%emt 0:00:20]} 40. Ra8 {[%emt 0:00:00]} Kf8 {[%emt 0:00:00]} 41. Ra7 {[%emt 0:08:23]} f6 {[%emt 0:19:31]} (41... Rf3 42. Kc5 Rc3+ 43. Kxb5 Nd6+ 44. Ka6 h5 45. gxh5 Rc6+ 46. Ka5 Rc3) 42. Rf7+ {[%emt 0:07:11]} Kg8 {[%emt 0:00:04][%cal Og3b3]} 43. Rd7+ {[%emt 0:00:08]} Kf8 {[%emt 0:00:51]} 44. Kc5 {[%emt 0:01:04]} Rxh3 {[%emt 0:09:34]} 45. Kxb5 {[%emt 0:00:12]} h5 {[%emt 0:00:16]} 46. gxh5 {[%emt 0:03:35]} f5 {[%emt 0:00:04]} 47. Kc5 {[%emt 0:08:34]} Nf6 {[%emt 0:00:57]} 48. Rf7+ {[%emt 0:00:29]} Ke8 {[%emt 0:00:01]} 49. Rxg7 {[%emt 0:00:17]} f4 {[%emt 0:00:55]} 50. Kd4 {[%emt 0:03:52] Hoping for b5.} Re3 $2 {[%emt 0:03:03]} (50... f3 51. Ke3 Kd8) 51. h6 {[%emt 0:01:21] And now h7 would win.} Re4+ {[%emt 0:00:05]} 52. Kd3 {[%emt 0:01:19] Strongly threatening h7.} Re3+ {[%emt 0:00:40]} 53. Kd4 {[%emt 0:00:23]} (53. Kc2 $142) 53... Re4+ $1 {[%emt 0:00:06]} 54. Kc5 {[%emt 0:00:24] Black must now prevent h7.} Re5+ {[%emt 0:01:24]} 55. Kd6 {[%emt 0:00:25]} Re4 {[%emt 0:00:38] [#]} 56. Rg8+ $1 {[%emt 0:01:17]} Nxg8 {[%emt 0:00:17]} 57. h7 {[%emt 0:00:02][%cal Rh7g8]} Rd4+ {[%emt 0:00:19]} 58. Kc5 {[%emt 0:00:06] Weighted Error Value: White=0.44/Black=0.41} 1-0